bitfinex/quotes_BTCUSD_20240828
["timestamp","ask_amount","ask_price","bid_price","bid_amount"]
[1724807727733,0.1872,59286.0,59283.0,0.16846077]
[1724807727935,0.1872,59286.0,59284.0,0.1]
[1724807728159,0.1872,59286.0,59285.0,0.16846077]
[1724807728315,0.1872,59286.0,59285.0,0.26846077]
[1724807729120,0.1501,59288.0,59285.0,0.26846077]
[1724807729320,0.1872,59290.0,59286.0,0.023]
[1724807729520,0.1872,59290.0,59287.0,0.16846077]
[1724807730784,0.1872,59290.0,59288.0,0.123]
[1724807730971,0.1936,59295.0,59289.0,0.16846077]
[1724807731186,0.1936,59295.0,59290.0,0.023]
[1724807731388,0.1936,59295.0,59291.0,0.16846077]
[1724807731591,0.1936,59295.0,59292.0,0.023]
[1724807731737,0.1511,59298.0,59293.0,0.16846077]
[1724807732102,0.1948965,59299.0,59293.0,0.16846077]
[1724807732103,0.0012965,59299.0,59294.0,0.123]
[1724807732404,0.0012965,59299.0,59295.0,0.16846077]
[1724807732539,0.0012965,59299.0,59296.0,0.123]
[1724807732749,0.0012965,59299.0,59297.0,0.16846077]
[1724807732972,0.0012965,59299.0,59298.0,0.123]
[1724807733174,0.0012965,59299.0,59298.0,0.29146077]
[1724807734439,0.0012965,59299.0,59298.0,0.30546077]
[1724807735500,0.0012965,59299.0,59298.0,0.29146077]
[1724807735644,0.0012965,59299.0,59298.0,0.47886077]
[1724807735860,0.0012965,59299.0,59298.0,0.48786077]
[1724807736066,0.0012965,59299.0,59298.0,0.47386077]
[1724807736421,0.0012965,59299.0,59298.0,0.30546077]
[1724807736599,0.1552965,59299.0,59298.0,0.29146077]
[1724807737002,0.1552965,59299.0,59298.0,0.30546077]
[1724807737201,0.1552965,59299.0,59298.0,0.29146077]
[1724807737768,0.1552965,59299.0,59298.0,0.30546077]
[1724807738972,0.0012965,59299.0,59298.0,0.30546077]
[1724807739372,0.0012965,59299.0,59298.0,0.29146077]
[1724807739802,0.0012965,59299.0,59298.0,0.30146077]
[1724807739980,0.0012965,59299.0,59298.0,0.29146077]
[1724807740383,0.0012965,59299.0,59298.0,0.30146077]
[1724807740760,0.0012965,59299.0,59298.0,0.29146077]
[1724807740974,0.0012965,59299.0,59298.0,0.30546077]
[1724807741164,0.0012965,59299.0,59298.0,0.29146077]
[1724807742525,0.0012965,59299.0,59298.0,0.31046077]
[1724807742909,0.0012965,59299.0,59298.0,0.29646077]
[1724807743113,0.0012965,59299.0,59298.0,0.31046077]
[1724807743319,0.0012965,59299.0,59298.0,0.29646077]
[1724807743737,0.0012965,59299.0,59298.0,0.31046077]
[1724807744582,0.0012965,59299.0,59298.0,0.33038077]
[1724807744763,0.0012965,59299.0,59298.0,0.48318077]
[1724807745999,0.0012965,59299.0,59298.0,0.69609595]
[1724807746744,0.0012965,59299.0,59298.0,0.68188077]
[1724807746919,0.0012965,59299.0,59298.0,0.66788077]
[1724807747072,0.0012965,59299.0,59298.0,0.69187994]
[1724807747280,0.0012965,59299.0,59298.0,0.67787994]
[1724807747892,0.1799,59308.0,59303.0,0.03392]
[1724807748093,0.145,59306.0,59304.0,0.16846077]
[1724807748302,0.145,59306.0,59305.0,0.1]
[1724807749856,0.145,59306.0,59305.0,0.106]
[1724807750248,0.145,59306.0,59305.0,0.27446077]
[1724807750607,0.1799,59308.0,59305.0,0.31146077]
[1724807750811,0.145,59311.0,59306.0,0.19146077]
[1724807751017,0.1799,59312.0,59306.0,0.19146077]
[1724807751479,0.1799,59312.0,59307.0,0.1]
[1724807751649,0.1799,59312.0,59308.0,0.19146077]
[1724807751851,0.1799,59312.0,59309.0,0.1]
[1724807752061,0.1799,59312.0,59310.0,0.19146077]
[1724807752234,0.1799,59312.0,59311.0,0.1]
[1724807752441,0.1799,59312.0,59311.0,0.26846077]
[1724807753317,0.1799,59312.0,59311.0,0.29146077]
[1724807753518,0.145,59314.0,59311.0,0.30546077]
[1724807753820,0.145,59314.0,59312.0,0.19146077]
[1724807754630,0.1799,59316.0,59312.0,0.19146077]
[1724807754837,0.1799,59316.0,59313.0,0.1]
[1724807755044,0.1548,59318.0,59314.0,0.19146077]
[1724807755251,0.00937601,59319.0,59315.0,0.1]
[1724807755471,0.00937601,59319.0,59316.0,0.19146077]
[1724807755622,0.00937601,59319.0,59317.0,0.1]
[1724807755822,0.00937601,59319.0,59318.0,0.16846077]
[1724807757124,0.00937601,59319.0,59318.0,0.19146077]
[1724807758158,0.00937601,59319.0,59318.0,0.16846077]
[1724807758278,0.00937601,59319.0,59318.0,0.17446077]
[1724807758470,0.00937601,59319.0,59318.0,0.16846077]
[1724807758873,0.00937601,59319.0,59318.0,0.014]
[1724807760165,0.37827046,59319.0,59318.0,0.014]
[1724807760380,0.71543046,59319.0,59318.0,0.014]
[1724807760598,1.71301123,59319.0,59318.0,0.014]
[1724807760822,2.05017123,59319.0,59318.0,0.014]
[1724807761048,1.71301123,59319.0,59318.0,0.014]
[1724807761268,1.71301123,59319.0,59300.0,0.0187035]
[1724807761269,0.519514,59307.0,59300.0,0.0187035]
[1724807761479,0.17283281,59306.0,59300.0,0.0187035]
[1724807761719,0.3509,59307.0,59301.0,0.16846077]
[1724807762661,0.3509,59307.0,59302.0,0.023]
[1724807762872,0.3509,59307.0,59303.0,0.16846077]
[1724807763974,0.00421533,59306.0,59300.0,0.0277035]
[1724807764429,0.1961,59303.0,59300.0,0.0277035]
[1724807764639,0.1961,59303.0,59300.0,0.0297035]
[1724807764856,0.1961,59303.0,59301.0,0.008]
[1724807765072,0.1961,59303.0,59300.0,0.0187035]
[1724807765287,0.1961,59303.0,59301.0,0.16846077]
[1724807765716,0.3517965,59307.0,59302.0,0.023]
[1724807765961,0.3517965,59307.0,59303.0,0.16846077]
[1724807765962,0.0008965,59307.0,59303.0,0.16846077]
[1724807766179,0.0008965,59307.0,59304.0,0.123]
[1724807766415,0.0008965,59307.0,59305.0,0.16846077]
[1724807766643,0.0008965,59307.0,59306.0,0.1]
[1724807766933,0.0008965,59307.0,59306.0,0.29146077]
[1724807768774,0.0008965,59307.0,59306.0,0.30546077]
[1724807770515,0.0008965,59307.0,59306.0,0.49846077]
[1724807770990,0.0008965,59307.0,59306.0,0.30546077]
[1724807773864,0.0008965,59307.0,59306.0,0.95716381]
[1724807774899,0.0008965,59307.0,59306.0,0.97798317]
[1724807775122,0.0008965,59307.0,59306.0,1.02838593]
[1724807775321,0.0008965,59307.0,59306.0,1.35198616]
[1724807775520,0.0008965,59307.0,59306.0,2.55367494]
[1724807775945,0.0008965,59307.0,59306.0,2.47798317]
[1724807776148,0.0008965,59307.0,59306.0,2.46398317]
[1724807776378,0.0008965,59307.0,59306.0,2.92767675]
[1724807777150,0.0008965,59307.0,59306.0,2.96159675]
[1724807777364,0.0008965,59307.0,59306.0,2.88590498]
[1724807777568,0.0008965,59307.0,59306.0,2.98671051]
[1724807777898,0.0008965,59307.0,59306.0,2.97272179]
[1724807778047,0.0008965,59307.0,59306.0,2.98672179]
[1724807778257,0.0008965,59307.0,59306.0,3.14130179]
[1724807778628,0.00937601,59319.0,59318.0,0.2031]
[1724807778828,0.00937601,59319.0,59318.0,2.48538917]
[1724807779554,0.00937601,59319.0,59318.0,2.13768917]
[1724807779754,0.00937601,59319.0,59318.0,2.14268917]
[1724807779961,0.00937601,59319.0,59318.0,2.17660917]
[1724807780177,0.00937601,59319.0,59318.0,1.97350917]
[1724807780378,0.00937601,59319.0,59318.0,0.92016381]
[1724807780611,0.19977601,59319.0,59318.0,0.92016381]
[1724807780957,0.35687601,59319.0,59318.0,0.014]
[1724807781146,0.35687601,59319.0,59309.0,0.11683312]
[1724807781147,0.1904,59318.0,59314.0,0.002]
[1724807781320,0.1904,59318.0,59309.0,0.0757531]
[1724807781321,0.3475,59314.0,59313.0,0.002]
[1724807781729,0.516094,59314.0,59313.0,0.002]
[1724807782025,0.1904,59314.0,59313.0,0.002]
[1724807782226,0.1904,59314.0,59306.0,0.0757531]
[1724807782227,0.337184,59315.0,59314.0,0.002]
[1724807782351,0.337184,59315.0,59306.0,0.05050207]
[1724807782352,0.168597,59313.0,59312.0,0.002]
[1724807782558,0.18351345,59314.0,59313.0,0.002]
[1724807782758,0.1904,59313.0,59312.0,0.002]
[1724807783016,0.1904,59313.0,59306.0,0.05050207]
[1724807783217,0.1904,59313.0,59312.0,0.002]
[1724807783799,0.1904,59313.0,59308.0,0.123]
[1724807784000,0.1904,59313.0,59309.0,0.16846077]
[1724807784964,0.00937601,59319.0,59311.0,0.16846077]
[1724807785131,0.19461485,59318.0,59312.0,0.1]
[1724807785343,0.19461485,59318.0,59313.0,0.16846077]
[1724807785493,0.19461485,59318.0,59314.0,0.1]
[1724807786178,0.1904,59318.0,59314.0,0.1]
[1724807786751,0.1904,59318.0,59315.0,0.16846077]
[1724807787083,0.1904,59318.0,59316.0,0.1]
[1724807787266,0.1904,59318.0,59316.0,0.26846077]
[1724807788444,0.1904,59318.0,59317.0,0.16846077]
[1724807788652,0.00937601,59319.0,59317.0,0.19146077]
[1724807789080,0.00937601,59319.0,59318.0,0.1]
[1724807789210,0.00937601,59319.0,59318.0,0.94316381]
[1724807790245,0.00937601,59319.0,59318.0,0.95716381]
[1724807790762,0.00937601,59319.0,59318.0,1.52001479]
[1724807790963,0.00937601,59319.0,59318.0,1.55393479]
[1724807791907,0.00937601,59319.0,59318.0,1.53993479]
[1724807792340,0.00138159,59319.0,59318.0,1.70893479]
[1724807792552,0.00897601,59332.0,59328.0,0.005]
[1724807792761,0.00897601,59332.0,59318.0,1.53853182]
[1724807792762,0.00897601,59332.0,59331.0,0.88631175]
[1724807792959,0.00897601,59332.0,59331.0,1.52510278]
[1724807793183,0.00897601,59332.0,59331.0,1.43766131]
[1724807793396,0.00897601,59332.0,59331.0,1.33985421]
[1724807793514,0.00897601,59332.0,59331.0,0.66051175]
[1724807793714,0.00897601,59332.0,59331.0,0.75199618]
[1724807793963,0.00897601,59332.0,59331.0,0.72425603]
[1724807794173,0.00897601,59332.0,59331.0,0.79991534]
[1724807794383,0.00897601,59332.0,59331.0,0.75884436]
[1724807794704,0.00897601,59332.0,59331.0,0.67451175]
[1724807794910,0.00897601,59332.0,59331.0,0.68425776]
[1724807795543,0.00897601,59332.0,59331.0,0.31520678]
[1724807795777,0.00897601,59332.0,59331.0,0.29146077]
[1724807796029,0.00897601,59332.0,59331.0,0.30546077]
[1724807796030,0.16337601,59332.0,59331.0,0.30546077]
[1724807796469,0.16337601,59332.0,59331.0,0.29146077]
[1724807796705,0.16337601,59332.0,59331.0,0.30546077]
[1724807796925,0.16337601,59332.0,59331.0,1.80546077]
[1724807798180,0.00897601,59332.0,59331.0,1.80546077]
[1724807799020,0.00897601,59332.0,59331.0,2.17451175]
[1724807799207,0.00897601,59332.0,59331.0,2.37101175]
[1724807799413,0.00897601,59332.0,59331.0,2.51981175]
[1724807799619,0.00897601,59332.0,59331.0,0.28246077]
[1724807800855,0.00897601,59332.0,59331.0,0.30546077]
[1724807801995,0.00897601,59332.0,59331.0,0.60032378]
[1724807802398,0.00897601,59332.0,59331.0,0.30546077]
[1724807802399,0.16337601,59332.0,59331.0,0.30546077]
[1724807803664,0.35757601,59332.0,59331.0,0.114]
[1724807803885,0.35757601,59332.0,59331.0,0.014]
[1724807805257,0.86320501,59332.0,59331.0,0.014]
[1724807805472,0.86320501,59332.0,59318.0,0.100817]
[1724807805473,0.3486,59324.0,59318.0,0.000817]
[1724807805696,0.00421453,59323.0,59319.0,0.16846077]
[1724807806143,0.00421453,59323.0,59322.0,0.002]
[1724807806376,0.3486,59324.0,59322.0,0.16846077]
[1724807806607,0.00897601,59332.0,59323.0,0.16846077]
[1724807806845,0.1843,59327.0,59324.0,0.1]
[1724807807077,0.00421418,59326.0,59324.0,0.1]
[1724807808338,0.1843,59327.0,59324.0,0.1]
[1724807808546,0.00897601,59332.0,59324.0,0.1]
[1724807808547,0.34427601,59332.0,59325.0,0.19146077]
[1724807808980,0.00897601,59332.0,59326.0,0.1]
[1724807809213,0.00897601,59332.0,59327.0,0.19146077]
[1724807809446,0.00897601,59332.0,59328.0,0.1]
[1724807809661,0.1886,59330.0,59328.0,0.1]
[1724807809871,0.00421397,59329.0,59325.0,0.013]
[1724807810082,0.16856,59326.0,59325.0,0.013]
[1724807810301,0.168573,59322.0,59320.0,0.002]
[1724807810507,0.488424,59326.0,59311.0,0.00992887]
[1724807810508,0.19281475,59321.0,59311.0,0.00992887]
[1724807810710,0.19281475,59321.0,59320.0,0.002]
[1724807811121,0.52996275,59321.0,59320.0,0.002]
[1724807811324,0.51818875,59321.0,59320.0,0.002]
[1724807811536,0.34091475,59321.0,59320.0,0.002]
[1724807812017,0.34091475,59321.0,59309.0,0.00974229]
[1724807812362,0.34091475,59321.0,59320.0,0.002]
[1724807812803,0.34091475,59321.0,59320.0,0.016]
[1724807813276,0.34091475,59321.0,59320.0,0.002]
[1724807813715,0.34848,59319.0,59318.0,0.001817]
[1724807813957,1.1796,59319.0,59318.0,0.002817]
[1724807814434,0.84244,59319.0,59318.0,0.000817]
[1724807814637,0.84244,59319.0,59318.0,0.002817]
[1724807815305,0.3367,59319.0,59318.0,0.001817]
[1724807815566,0.3367,59319.0,59318.0,0.002817]
[1724807815791,0.50528,59319.0,59318.0,0.002817]
[1724807816721,0.50528,59319.0,59318.0,0.006817]
[1724807816941,0.50528,59319.0,59318.0,0.008817]
[1724807817684,1.1796,59319.0,59318.0,0.008817]
[1724807817909,1.1796,59319.0,59318.0,0.006817]
[1724807818128,1.1796,59319.0,59318.0,0.008817]
[1724807818569,0.84244,59319.0,59318.0,0.002817]
[1724807818805,1.1796,59319.0,59318.0,0.004817]
[1724807819053,0.84244,59319.0,59318.0,0.004817]
[1724807819276,0.84244,59319.0,59318.0,0.002817]
[1724807819521,1.1796,59319.0,59318.0,0.004817]
[1724807821861,1.1796,59319.0,59318.0,0.002817]
[1724807822087,1.1806,59319.0,59318.0,0.002817]
[1724807822354,1.1806,59319.0,59300.0,0.2187035]
[1724807822355,0.3327,59311.0,59308.0,0.002]
[1724807822606,0.337251,59303.0,59302.0,0.002]
[1724807822850,1.157827,59303.0,59302.0,0.002]
[1724807823069,0.483331,59301.0,59300.0,0.2187035]
[1724807823297,1.157855,59301.0,59300.0,0.2207035]
[1724807823520,1.495117,59301.0,59300.0,0.2207035]
[1724807824973,0.820593,59301.0,59300.0,0.2207035]
[1724807825214,0.3187,59301.0,59300.0,0.2207035]
[1724807825672,0.3147,59301.0,59300.0,0.2207035]
[1724807825901,0.3187,59301.0,59300.0,0.2207035]
[1724807826125,0.3147,59301.0,59300.0,0.2207035]
[1724807826391,0.3147,59301.0,59300.0,0.2247035]
[1724807826637,0.3147,59301.0,59300.0,0.2227035]
[1724807826850,0.31891613,59301.0,59300.0,0.2227035]
[1724807827064,0.31891613,59301.0,59300.0,0.2247035]
[1724807827614,1.16207113,59301.0,59300.0,0.2227035]
[1724807827929,1.16207113,59301.0,59300.0,0.2247035]
[1724807828398,0.82480913,59301.0,59300.0,0.2227035]
[1724807828631,1.16207113,59301.0,59300.0,0.2207035]
[1724807828871,1.16207113,59301.0,59300.0,0.2215205]
[1724807829340,1.16207113,59301.0,59300.0,0.2235205]
[1724807829593,0.82480913,59301.0,59300.0,0.2235205]
[1724807830765,0.82480913,59301.0,59300.0,0.2215205]
[1724807830972,0.82480913,59301.0,59300.0,0.2245205]
[1724807831193,0.82480913,59301.0,59300.0,0.2225205]
[1724807831602,0.82280913,59301.0,59300.0,0.2225205]
[1724807832031,0.82280913,59301.0,59300.0,0.2245205]
[1724807832713,0.82280913,59301.0,59300.0,0.2225205]
[1724807832933,1.16007113,59301.0,59300.0,0.2245205]
[1724807833785,1.3285319,59301.0,59300.0,0.2215205]
[1724807833997,1.6657939,59301.0,59300.0,0.2215205]
[1724807834210,1.6687939,59301.0,59300.0,0.2215205]
[1724807834623,1.3355319,59301.0,59300.0,0.2215205]
[1724807835058,1.3285319,59301.0,59300.0,0.2215205]
[1724807835304,1.3325319,59301.0,59300.0,0.2215205]
[1724807835507,1.16407113,59301.0,59300.0,0.2215205]
[1724807835713,0.48954713,59301.0,59300.0,0.2215205]
[1724807835925,0.82680913,59301.0,59300.0,0.2215205]
[1724807836745,0.82280913,59301.0,59300.0,0.2215205]
[1724807836946,1.16007113,59301.0,59300.0,0.2215205]
[1724807837156,1.16407113,59301.0,59300.0,0.2215205]
[1724807837357,1.16007113,59301.0,59300.0,0.2215205]
[1724807837788,0.48554713,59301.0,59300.0,0.2255205]
[1724807838604,0.17284713,59301.0,59300.0,0.2255205]
[1724807838814,0.51010913,59301.0,59300.0,0.2255205]
[1724807839226,0.00421613,59301.0,59300.0,0.2255205]
[1724807839436,0.3414722,59302.0,59301.0,0.002]
[1724807839752,0.505893,59301.0,59300.0,0.2255205]
[1724807840301,0.168631,59301.0,59300.0,0.2255205]
[1724807840512,0.5101092,59301.0,59300.0,0.2235205]
[1724807840716,0.5101092,59301.0,59300.0,0.2255205]
[1724807841091,0.5101092,59301.0,59300.0,0.2245205]
[1724807841304,0.8473712,59301.0,59300.0,0.2255205]
[1724807841903,1.3518332,59301.0,59300.0,0.2235205]
[1724807842111,1.3518332,59301.0,59300.0,0.2195205]
[1724807843002,1.37825543,59301.0,59300.0,0.2195205]
[1724807843417,1.38225543,59301.0,59300.0,0.0195205]
[1724807843851,1.37825543,59301.0,59300.0,0.0195205]
[1724807844063,1.37915414,59301.0,59300.0,0.0195205]
[1724807844343,0.19873714,59301.0,59300.0,0.0195205]
[1724807844552,0.70763014,59301.0,59300.0,0.0215205]
[1724807845643,0.37036814,59301.0,59300.0,0.0215205]
[1724807845864,0.20173714,59301.0,59300.0,0.0215205]
[1724807846075,0.00389871,59301.0,59300.0,0.0215205]
[1724807846276,0.00389871,59301.0,59300.0,0.39221775]
[1724807846398,0.00389871,59301.0,59300.0,0.62028127]
[1724807846597,0.00089871,59301.0,59300.0,0.62028127]
[1724807846806,0.00511384,59319.0,59302.0,0.3033]
[1724807847011,0.00511384,59319.0,59307.0,0.3033]
[1724807847222,0.00089871,59319.0,59309.0,0.1575]
[1724807847417,0.00089871,59319.0,59311.0,0.1575]
[1724807847672,0.00089871,59319.0,59312.0,0.26846077]
[1724807847909,0.00089871,59319.0,59313.0,0.023]
[1724807848061,0.00089871,59319.0,59314.0,0.16846077]
[1724807849062,0.00089871,59319.0,59313.0,0.023]
[1724807849063,0.00089871,59319.0,59317.0,0.1458]
[1724807849254,0.00089871,59319.0,59316.0,0.1575]
[1724807849255,0.00089871,59319.0,59318.0,0.57176077]
[1724807849498,0.00089871,59319.0,59318.0,0.59476077]
[1724807850918,0.00089871,59319.0,59318.0,0.60876077]
[1724807852697,0.00089871,59319.0,59318.0,0.61376077]
[1724807852927,0.00089871,59319.0,59318.0,2.11376077]
[1724807854182,0.00089871,59319.0,59318.0,2.09976077]
[1724807854391,0.00897601,59336.0,59331.0,0.45316301]
[1724807854574,0.00897601,59336.0,59331.0,0.86522378]
[1724807855507,0.00897601,59336.0,59331.0,0.87922378]
[1724807856365,0.00897601,59336.0,59331.0,2.78302123]
[1724807856573,0.00897601,59336.0,59331.0,2.79296157]
[1724807856775,0.00897601,59336.0,59331.0,2.82688157]
[1724807857386,0.00897601,59336.0,59331.0,2.81288157]
[1724807857584,0.00897601,59336.0,59331.0,2.82688157]
[1724807858045,0.00897601,59336.0,59331.0,2.81288157]
[1724807858283,0.00897601,59336.0,59335.0,0.31572]
[1724807858490,0.00897601,59336.0,59335.0,0.60718077]
[1724807858904,0.00897601,59336.0,59335.0,0.56826077]
[1724807859741,0.00897601,59336.0,59335.0,0.41816077]
[1724807859951,0.00897601,59336.0,59335.0,0.26846077]
[1724807860163,0.00897601,59336.0,59335.0,0.42056077]
[1724807860367,0.00897601,59336.0,59335.0,0.26846077]
[1724807861180,0.00897601,59336.0,59335.0,0.28246077]
[1724807861426,0.00897601,59336.0,59335.0,0.26846077]
[1724807861635,0.00897601,59336.0,59335.0,0.30546077]
[1724807862267,0.00897601,59336.0,59335.0,0.28246077]
[1724807862648,0.00897601,59336.0,59335.0,0.30546077]
[1724807865112,0.00897601,59336.0,59335.0,0.28246077]
[1724807865594,0.28837601,59336.0,59335.0,0.114]
[1724807865856,0.28837601,59336.0,59335.0,0.014]
[1724807866083,0.29258953,59336.0,59335.0,0.014]
[1724807866531,0.29258953,59336.0,59322.0,0.1471]
[1724807866749,0.29258953,59336.0,59323.0,0.16846077]
[1724807866972,0.29258953,59336.0,59335.0,0.008]
[1724807867184,0.29258953,59336.0,59323.0,0.16846077]
[1724807867401,0.29258953,59336.0,59335.0,0.008]
[1724807867827,0.29258953,59336.0,59324.0,0.123]
[1724807868067,0.29258953,59336.0,59325.0,0.16846077]
[1724807868319,0.29258953,59336.0,59326.0,0.1]
[1724807868511,0.29258953,59336.0,59335.0,0.008]
[1724807869948,0.29258953,59336.0,59328.0,0.1]
[1724807870160,0.29258953,59336.0,59328.0,0.26846077]
[1724807870797,0.29258953,59336.0,59335.0,0.008]
[1724807871003,0.29258953,59336.0,59328.0,0.26846077]
[1724807871214,0.29258953,59336.0,59329.0,0.16846077]
[1724807871424,0.29258953,59336.0,59330.0,0.1]
[1724807871636,0.29258953,59336.0,59330.0,0.26846077]
[1724807872514,0.00421376,59335.0,59331.0,0.16846077]
[1724807872723,0.00421376,59335.0,59332.0,0.1]
[1724807872951,0.00421376,59335.0,59330.0,0.1]
[1724807873169,0.00421376,59335.0,59331.0,0.16846077]
[1724807873443,0.00421376,59335.0,59332.0,0.1]
[1724807874930,0.00421376,59335.0,59332.0,0.109]
[1724807876139,0.17274976,59335.0,59332.0,0.009]
[1724807876355,0.318837,59334.0,59332.0,0.009]
[1724807876588,0.12807601,59336.0,59332.0,0.009]
[1724807876589,0.17275418,59333.0,59332.0,0.009]
[1724807876825,0.1503,59321.0,59316.0,0.067549]
[1724807877048,0.15451514,59320.0,59316.0,0.067549]
[1724807877316,0.1503,59319.0,59306.0,0.01009181]
[1724807877555,0.168586,59317.0,59307.0,0.16846077]
[1724807877763,0.168586,59317.0,59300.0,0.0195205]
[1724807877764,0.2806157,59316.0,59300.0,0.0195205]
[1724807877969,0.168601,59312.0,59300.0,0.0195205]
[1724807878150,0.004216,59311.0,59305.0,0.001]
[1724807878390,0.1503,59310.0,59306.0,0.002]
[1724807878607,0.00421601,59309.0,59300.0,0.0195205]
[1724807879024,0.00421601,59309.0,59306.0,0.005]
[1724807879234,0.00421562,59309.0,59306.0,0.005]
[1724807880326,0.00421562,59309.0,59302.0,0.16846077]
[1724807880559,0.00421562,59309.0,59303.0,0.1]
[1724807880780,0.00421562,59309.0,59306.0,0.008]
[1724807881052,0.00421562,59309.0,59304.0,0.16846077]
[1724807881265,0.00421562,59309.0,59303.0,0.1]
[1724807881457,0.00521562,59309.0,59306.0,0.009]
[1724807881797,0.00521562,59309.0,59308.0,0.002]
[1724807882299,0.00421559,59314.0,59313.0,0.002]
[1724807882503,0.0042155,59316.0,59315.0,0.002]
[1724807882911,0.0042155,59316.0,59309.0,0.1]
[1724807883111,0.0042155,59316.0,59315.0,0.002]
[1724807883312,0.0042155,59316.0,59311.0,0.1]
[1724807883583,0.00421513,59319.0,59311.0,0.26846077]
[1724807883756,0.00421513,59319.0,59317.0,0.002]
[1724807884962,0.168582,59318.0,59317.0,0.002]
[1724807885373,0.00421513,59319.0,59317.0,0.002]
[1724807885979,0.337165,59318.0,59317.0,2.002]
[1724807886176,0.1582,59318.0,59317.0,2.002]
[1724807887802,0.663947,59318.0,59317.0,2.002]
[1724807888004,1.001112,59318.0,59317.0,2.002]
[1724807888210,1.62723777,59318.0,59317.0,2.001]
[1724807888406,1.96440277,59318.0,59317.0,2.001]
[1724807888657,2.35461941,59318.0,59317.0,0.30902299]
[1724807888901,2.35461941,59318.0,59304.0,0.000817]
[1724807888902,1.337736,59305.0,59304.0,0.000817]
[1724807889057,1.50619677,59305.0,59304.0,0.000817]
[1724807890492,0.1574,59305.0,59304.0,0.000817]
[1724807890693,0.00521617,59305.0,59304.0,0.001817]
[1724807890921,0.00421617,59305.0,59304.0,0.000817]
[1724807891291,0.00521617,59305.0,59304.0,0.001817]
[1724807891505,0.00521617,59305.0,59304.0,0.000817]
[1724807891884,0.001,59305.0,59304.0,0.000817]
[1724807892091,0.001,59305.0,59304.0,0.002817]
[1724807892355,0.001,59305.0,59304.0,0.000817]
[1724807893090,0.003,59305.0,59304.0,0.000817]
[1724807894355,0.17583494,59305.0,59304.0,0.000817]
[1724807894505,0.00721594,59305.0,59304.0,0.000817]
[1724807895323,0.17583494,59305.0,59304.0,0.000817]
[1724807895528,0.51307394,59305.0,59304.0,0.000817]
[1724807895742,0.67287394,59305.0,59304.0,0.000817]
[1724807899134,0.00721594,59305.0,59304.0,0.000817]
[1724807899341,0.003,59305.0,59304.0,0.000817]
[1724807900234,0.002,59305.0,59304.0,0.000817]
[1724807900464,0.00421594,59305.0,59304.0,0.000817]
[1724807900696,0.00421564,59313.0,59305.0,0.1225]
[1724807900929,0.00421564,59313.0,59306.0,0.1]
[1724807901165,0.00421548,59316.0,59307.0,0.16846077]
[1724807901389,0.00421548,59316.0,59307.0,0.31686077]
[1724807901821,0.00421526,59319.0,59308.0,0.1277]
[1724807902031,0.00421526,59319.0,59309.0,0.19146077]
[1724807902250,0.00421526,59319.0,59310.0,0.1]
[1724807902451,0.00421526,59319.0,59313.0,0.1272]
[1724807902699,0.00421526,59319.0,59314.0,0.16846077]
[1724807902849,0.17278291,59323.0,59314.0,0.16846077]
[1724807903259,0.002,59316.0,59314.0,0.16846077]
[1724807903719,0.002,59316.0,59313.0,0.1272]
[1724807903943,0.00421518,59315.0,59313.0,0.1272]
[1724807904600,0.168583,59318.0,59313.0,0.1272]
[1724807904828,0.001,59316.0,59313.0,0.1272]
[1724807905039,0.169589,59316.0,59313.0,0.1272]
[1724807905267,0.00421511,59315.0,59313.0,0.1272]
[1724807905728,0.001,59316.0,59314.0,0.16846077]
[1724807907039,0.15211491,59319.0,59310.0,0.1]
[1724807907270,0.15211491,59319.0,59307.0,0.1165]
[1724807907271,0.337182,59315.0,59308.0,0.1]
[1724807907509,0.168598,59313.0,59308.0,0.1]
[1724807907720,0.0042155,59312.0,59308.0,0.1]
[1724807907940,0.1479,59319.0,59300.0,0.67122354]
[1724807907941,0.505858,59305.0,59300.0,0.0195205]
[1724807908187,0.843097,59305.0,59302.0,0.002]
[1724807908404,1.328236,59305.0,59302.0,0.001]
[1724807908656,1.49669677,59305.0,59303.0,0.002]
[1724807909122,1.50169677,59305.0,59300.0,0.0195205]
[1724807909971,1.83893577,59305.0,59300.0,0.0195205]
[1724807910168,1.83893577,59305.0,59304.0,0.007817]
[1724807910376,1.83893577,59305.0,59304.0,0.000817]
[1724807910658,1.83893577,59305.0,59280.0,0.1509]
[1724807910659,0.005,59281.0,59266.0,0.07525476]
[1724807910865,0.87475353,59305.0,59269.0,0.002]
[1724807910866,0.78404077,59279.0,59269.0,0.002]
[1724807911123,0.78404077,59279.0,59264.0,0.000815]
[1724807911124,1.45881477,59279.0,59266.0,0.002]
[1724807911361,1.45881477,59279.0,59272.0,0.019521]
[1724807911575,1.45881477,59279.0,59266.0,0.002]
[1724807912217,1.46081477,59279.0,59278.0,0.001815]
[1724807912957,1.46081477,59279.0,59264.0,0.000815]
[1724807912958,0.321933,59265.0,59264.0,0.000815]
[1724807913200,0.1482,59265.0,59264.0,0.000815]
[1724807913660,0.0042192,59269.0,59264.0,0.000815]
[1724807914044,0.168733,59266.0,59264.0,0.000815]
[1724807914215,0.00421913,59265.0,59264.0,0.000815]
[1724807914438,0.00721913,59265.0,59264.0,0.001815]
[1724807914633,0.00721913,59265.0,59264.0,0.000815]
[1724807915195,0.171723,59269.0,59264.0,0.000815]
[1724807915196,0.004219,59268.0,59264.0,0.000815]
[1724807915823,0.004219,59268.0,59265.0,0.1377]
[1724807916621,0.003,59269.0,59265.0,0.1377]
[1724807916748,0.003,59269.0,59266.0,0.1]
[1724807916982,0.00421843,59273.0,59266.0,0.1]
[1724807918019,0.00421843,59272.0,59266.0,0.1]
[1724807918431,0.00421843,59272.0,59266.0,0.104]
[1724807918654,0.00421843,59272.0,59266.0,0.1]
[1724807918925,0.337404,59277.0,59266.0,0.1]
[1724807918926,0.00421843,59276.0,59266.0,0.1]
[1724807919225,0.168705,59275.0,59266.0,0.1]
[1724807919427,0.00421843,59274.0,59266.0,0.1]
[1724807920089,0.17292643,59274.0,59264.0,0.000815]
[1724807920304,0.337381,59280.0,59264.0,0.000815]
[1724807920522,0.00421857,59279.0,59266.0,0.008]
[1724807920748,0.168697,59278.0,59264.0,0.000815]
[1724807920954,0.00421857,59277.0,59264.0,0.100815]
[1724807921191,0.00421857,59277.0,59266.0,0.004]